bitfinex/quotes_BTCUSD_20250904
["timestamp","ask_amount","ask_price","bid_price","bid_amount"]
[1757028541915,0.20860744,111380.0,111370.0,0.21849]
[1757028542120,0.20860744,111380.0,111370.0,0.06837]
[1757028542320,0.21381744,111380.0,111370.0,0.21849]
[1757028543304,0.20860744,111380.0,111370.0,0.53217351]
[1757028543531,0.20860744,111380.0,111370.0,0.6255595]
[1757028544213,0.20860744,111380.0,111370.0,0.80514107]
[1757028544658,0.00204688,111380.0,111370.0,1.11882458]
[1757028544894,0.00204688,111380.0,111370.0,1.14355458]
[1757028545608,0.00204688,111380.0,111370.0,0.8300114]
[1757028546260,0.00204688,111380.0,111370.0,0.8310114]
[1757028546437,4.688e-05,111380.0,111370.0,0.8310114]
[1757028546886,0.00204688,111380.0,111370.0,0.6808914]
[1757028547127,4.688e-05,111380.0,111370.0,0.8300114]
[1757028547332,4.688e-05,111380.0,111370.0,0.8330114]
[1757028547541,0.00204688,111380.0,111370.0,0.6838914]
[1757028547731,0.18161233,111380.0,111370.0,0.62822983]
[1757028549290,0.18161233,111380.0,111370.0,0.62522983]
[1757028549465,0.17961233,111380.0,111370.0,0.62422983]
[1757028549662,0.17961233,111380.0,111370.0,0.62622983]
[1757028550446,0.18161233,111380.0,111370.0,0.62722983]
[1757028550845,0.18161233,111380.0,111370.0,0.8068114]
[1757028551068,0.18161233,111380.0,111370.0,0.62722983]
[1757028552114,0.18161233,111380.0,111370.0,0.47710983]
[1757028552328,0.18161233,111380.0,111370.0,0.62722983]
[1757028552852,0.18161233,111380.0,111370.0,0.6566914]
[1757028553050,0.18161233,111380.0,111370.0,0.8068114]
[1757028553636,0.18161233,111380.0,111370.0,0.47710983]
[1757028553847,0.18161233,111380.0,111370.0,0.62722983]
[1757028555272,0.18161233,111380.0,111370.0,0.8068114]
[1757028557153,0.00204688,111380.0,111370.0,0.8068114]
[1757028557976,0.00204688,111380.0,111370.0,0.8082814]
[1757028559023,0.18161233,111380.0,111370.0,0.8068114]
[1757028559687,0.18356233,111380.0,111370.0,0.47710983]
[1757028559923,0.18672233,111380.0,111370.0,0.62722983]
[1757028560144,0.18672233,111380.0,111370.0,0.06924]
[1757028560357,0.18672233,111380.0,111370.0,0.2194]
[1757028560947,0.21371591,111380.0,111370.0,0.2174]
[1757028561150,0.21371591,111380.0,111370.0,0.2164]
[1757028561331,0.21171591,111380.0,111370.0,0.2164]
[1757028561532,0.21171591,111380.0,111370.0,0.21314293]
[1757028561734,0.21271591,111380.0,111370.0,0.20418953]
[1757028563922,0.21271591,111380.0,111370.0,0.05402953]
[1757028564151,0.21271591,111380.0,111370.0,0.20418953]
[1757028564381,0.21271591,111380.0,111370.0,0.20414953]
[1757028566762,0.21271591,111380.0,111370.0,0.05402953]
[1757028566974,0.21271591,111380.0,111370.0,0.20414953]
[1757028568219,0.21271591,111380.0,111370.0,0.19703193]
[1757028568468,0.52653975,111380.0,111370.0,0.18704042]
[1757028568660,0.52653975,111380.0,111370.0,0.1803797]
[1757028569699,0.21271591,111380.0,111370.0,0.00911275]
[1757028569944,0.21271591,111380.0,111370.0,0.15389624]
[1757028571160,0.52653975,111380.0,111370.0,0.15389624]
[1757028571956,0.20760591,111380.0,111370.0,0.15601624]
[1757028572332,0.21271591,111380.0,111370.0,0.15601624]
[1757028572712,0.21271591,111380.0,111370.0,0.15389624]
[1757028572920,0.21271591,111380.0,111370.0,0.15385624]
[1757028577492,0.52653975,111380.0,111370.0,0.15385624]
[1757028578338,0.52653975,111380.0,111370.0,0.00373624]
[1757028578540,0.52653975,111380.0,111370.0,0.15385624]
[1757028578747,0.52653975,111380.0,111370.0,0.00373624]
[1757028578927,0.86653975,111380.0,111370.0,0.001]
[1757028581160,1.01665975,111380.0,111370.0,0.001]
[1757028581385,1.10857574,111380.0,111370.0,0.001]
[1757028581591,1.20049173,111380.0,111370.0,0.001]
[1757028582616,1.05037173,111380.0,111370.0,0.001]
[1757028582762,1.22143055,111380.0,111370.0,0.001]
[1757028584075,1.28722889,111380.0,111370.0,0.001]
[1757028585600,1.13710889,111380.0,111370.0,0.001]
[1757028585768,1.28722889,111380.0,111370.0,0.001]
[1757028586171,1.13710889,111380.0,111370.0,1e-08]
[1757028586543,1.28722889,111380.0,111370.0,1e-08]
[1757028587539,1.28722889,111380.0,111340.0,0.0004]
[1757028587540,0.17961383,111350.0,111340.0,0.0004]
[1757028587705,0.49343767,111350.0,111340.0,0.0004]
[1757028587902,0.49862767,111350.0,111340.0,0.0004]
[1757028588107,0.52563189,111350.0,111340.0,0.0004]
[1757028588915,0.5347969,111350.0,111340.0,0.0024]
[1757028589422,0.8747969,111350.0,111340.0,0.0024]
[1757028589874,1.0249569,111350.0,111340.0,0.0024]
[1757028590117,1.0269569,111350.0,111340.0,0.0004]
[1757028590343,0.54058491,111330.0,111320.0,0.0004]
[1757028590549,1.16850759,111330.0,111320.0,0.0004]
[1757028590782,1.17369759,111330.0,111320.0,0.0004]
[1757028590981,1.20071154,111330.0,111320.0,0.0004]
[1757028591254,1.24160938,111330.0,111320.0,0.0004]
[1757028591605,1.24360938,111330.0,111320.0,0.000541]
[1757028591807,1.55643322,111330.0,111320.0,0.000541]
[1757028593548,1.55843322,111330.0,111320.0,0.000541]
[1757028594690,1.40827322,111330.0,111320.0,0.000541]
[1757028595017,1.55843322,111330.0,111320.0,0.000541]
[1757028596473,1.40827322,111330.0,111320.0,0.000541]
[1757028596697,1.55843322,111330.0,111320.0,0.000541]
[1757028600407,1.55847322,111330.0,111320.0,0.000541]
[1757028601739,0.78062554,111330.0,111320.0,0.000541]
[1757028601919,1.31531155,111330.0,111320.0,0.000541]
[1757028602164,0.20966004,111330.0,111320.0,0.002621]
[1757028602370,0.52348388,111330.0,111320.0,0.004091]
[1757028602574,0.52348388,111330.0,111320.0,0.002621]
[1757028603219,1.53088528,111330.0,111320.0,0.000541]
[1757028604735,1.57133391,111330.0,111320.0,0.000541]
[1757028605119,0.96661543,111330.0,111320.0,0.000541]
[1757028605274,1.57133391,111330.0,111320.0,0.000541]
[1757028605482,1.57249247,111330.0,111320.0,0.000541]
[1757028607542,1.59542167,111330.0,111320.0,0.000541]
[1757028608172,1.61221914,111330.0,111320.0,0.000541]
[1757028609408,1.59542167,111330.0,111320.0,0.000541]
[1757028609633,1.61222234,111330.0,111320.0,0.000541]
[1757028610394,1.58929314,111330.0,111320.0,0.000541]
[1757028610683,1.57249247,111330.0,111320.0,0.000541]
[1757028611492,1.58930045,111330.0,111320.0,0.000541]
[1757028611998,1.57249247,111330.0,111320.0,0.000541]
[1757028612179,1.58930045,111330.0,111320.0,0.000541]
[1757028613558,1.57249247,111330.0,111320.0,0.000541]
[1757028615245,1.59187791,111330.0,111320.0,0.000541]
[1757028616364,1.60871151,111330.0,111320.0,0.000541]
[1757028618404,1.60872437,111330.0,111320.0,0.000541]
[1757028618805,1.94605669,111330.0,111320.0,1e-08]
[1757028619182,1.96952647,111330.0,111320.0,1e-08]
[1757028619721,1.99378127,111330.0,111320.0,1e-08]
[1757028620193,0.17966223,111320.0,111310.0,1e-08]
[1757028620402,1.53954975,111320.0,111310.0,8.485e-05]
[1757028620704,1.54446975,111320.0,111310.0,8.485e-05]
[1757028620928,1.57148778,111320.0,111310.0,8.485e-05]
[1757028621405,1.62248778,111320.0,111310.0,8.485e-05]
[1757028621674,1.96248778,111320.0,111310.0,8.485e-05]
[1757028621888,1.83654258,111320.0,111310.0,8.485e-05]
[1757028622095,1.98674258,111320.0,111310.0,8.485e-05]
[1757028622707,1.98574258,111320.0,111310.0,8.485e-05]
[1757028622910,2.0076814,111320.0,111310.0,8.485e-05]
[1757028623112,1.14848461,111310.0,111300.0,0.47055754]
[1757028623327,1.99719659,111310.0,111300.0,0.39004385]
[1757028623551,2.02210579,111310.0,111300.0,0.39004385]
[1757028623766,1.14384269,111300.0,111290.0,0.00165092]
[1757028623994,1.38595868,111300.0,111290.0,0.00165092]
[1757028624211,1.82727766,111300.0,111290.0,1e-08]
[1757028624440,1.91919365,111300.0,111290.0,1e-08]
[1757028626430,1.29038741,111300.0,111290.0,1e-08]
[1757028626651,1.37464463,111300.0,111290.0,1e-08]
[1757028627151,0.56972681,111280.0,111270.0,1e-08]
[1757028627373,1.05320451,111280.0,111270.0,1e-08]
[1757028627589,1.99839387,111280.0,111270.0,1e-08]
[1757028627805,2.02426307,111280.0,111270.0,1e-08]
[1757028628021,1.93817779,111280.0,111270.0,1e-08]
[1757028628243,2.09198171,111280.0,111270.0,1e-08]
[1757028628465,2.09598171,111280.0,111270.0,1e-08]
[1757028628653,2.09612219,111280.0,111270.0,1e-08]
[1757028628878,2.09616219,111280.0,111270.0,1e-08]
[1757028629099,0.17974296,111270.0,111260.0,0.0004]
[1757028629324,1.96832485,111270.0,111260.0,1e-08]
[1757028629564,1.97270427,111270.0,111260.0,1e-08]
[1757028630225,1.82246427,111270.0,111260.0,1e-08]
[1757028630444,1.97570427,111270.0,111260.0,1e-08]
[1757028630681,1.97370427,111270.0,111260.0,1e-08]
[1757028631544,1.97770427,111270.0,111260.0,1e-08]
[1757028631754,1.41721313,111270.0,111260.0,0.00196001]
[1757028631984,1.56645313,111270.0,111260.0,0.00196001]
[1757028632175,1.56843313,111270.0,111260.0,0.00196001]
[1757028632381,1.57043313,111270.0,111260.0,0.00296001]
[1757028632585,1.59137195,111270.0,111260.0,0.00100001]
[1757028632794,1.58537195,111270.0,111260.0,1e-08]
[1757028633004,1.60728024,111270.0,111260.0,0.00100001]
[1757028633671,1.62321384,111270.0,111260.0,0.00100001]
[1757028634523,1.5590936,111270.0,111260.0,0.00100001]
[1757028634920,1.56269749,111270.0,111260.0,0.00100001]
[1757028635060,1.41245749,111270.0,111260.0,0.00100001]
[1757028635294,1.56269749,111270.0,111260.0,0.00100001]
[1757028635720,1.41245749,111270.0,111260.0,0.00100001]
[1757028635921,1.56269749,111270.0,111260.0,0.00100001]
[1757028638005,1.41245749,111270.0,111260.0,0.00100001]
[1757028638216,1.61077691,111270.0,111260.0,0.00310001]
[1757028638914,1.61077691,111270.0,111260.0,0.00100001]
[1757028639622,2.05627691,111270.0,111260.0,0.00100001]
[1757028640830,0.75952118,111270.0,111260.0,0.00457001]
[1757028641076,1.17493137,111270.0,111260.0,0.00457001]
[1757028641674,0.71024825,111270.0,111260.0,0.00457001]
[1757028641900,1.51493137,111270.0,111260.0,0.00457001]
[1757028642544,1.52327298,111270.0,111260.0,0.00457001]
[1757028642774,1.07777298,111270.0,111260.0,0.00457001]
[1757028645308,1.27557361,111270.0,111260.0,0.00100001]
[1757028645513,1.22753419,111270.0,111260.0,0.00100001]
[1757028645750,1.24847301,111270.0,111260.0,0.00100001]
[1757028645994,1.56287613,111270.0,111260.0,0.00100001]
[1757028646248,1.62699637,111270.0,111260.0,0.00100001]
[1757028646432,0.51975912,111260.0,111250.0,0.0004]
[1757028646639,1.53928229,111260.0,111250.0,0.0004]
[1757028646848,0.88854426,111260.0,111250.0,0.0004]
[1757028647052,1.5173505,111260.0,111250.0,0.0004]
[1757028647268,0.95626864,111260.0,111250.0,0.0004]
[1757028647476,1.58507488,111260.0,111250.0,0.0004]
[1757028647608,1.5939626,111260.0,111250.0,1e-08]
[1757028648025,0.96515636,111260.0,111250.0,1e-08]
[1757028648238,1.5939626,111260.0,111250.0,1e-08]
[1757028648438,1.5939626,111260.0,111240.0,4e-05]
[1757028648439,0.2007141,111250.0,111240.0,4e-05]
[1757028648639,0.9418367,111250.0,111240.0,4e-05]
[1757028648869,0.9470967,111250.0,111240.0,4e-05]
[1757028649439,0.89890879,111250.0,111240.0,4e-05]
[1757028649593,0.90090879,111250.0,111240.0,0.00104]
[1757028649804,0.90094374,111250.0,111240.0,0.00104]
[1757028650485,0.96506398,111250.0,111240.0,0.00104]
[1757028650786,1.34463049,111250.0,111240.0,0.00104]
[1757028651182,1.37166357,111250.0,111240.0,0.00104]
[1757028651390,1.68606669,111250.0,111240.0,0.00104]
[1757028651779,1.70899589,111250.0,111240.0,0.00104]
[1757028652116,1.39459277,111250.0,111240.0,0.00104]
[1757028652474,1.33047253,111250.0,111240.0,0.00104]
[1757028653384,0.5198076,111230.0,111220.0,0.00155]
[1757028653583,0.90195249,111230.0,111220.0,0.00155]
[1757028653828,0.90195249,111230.0,111220.0,0.00365]
[1757028654033,0.61458245,111230.0,111220.0,0.00365]
[1757028654235,0.95418245,111230.0,111220.0,0.00365]
[1757028654645,0.6399197,111230.0,111220.0,0.00218]
[1757028655081,0.6399197,111230.0,111220.0,0.00365]
[1757028655279,0.88737569,111230.0,111220.0,0.00218]
[1757028655501,0.99541712,111230.0,111220.0,8e-05]
[1757028655705,1.30982024,111230.0,111220.0,8e-05]
[1757028655912,0.84099936,111230.0,111220.0,8e-05]
[1757028656074,1.15640248,111230.0,111220.0,0.00208]
[1757028656273,0.86293818,111230.0,111220.0,0.00208]
[1757028656498,1.52099199,111230.0,111220.0,0.00208]
[1757028656707,1.6011934,111230.0,111220.0,0.00208]
[1757028656933,1.69522939,111230.0,111220.0,0.00208]
[1757028657106,1.37882627,111230.0,111220.0,0.00208]
[1757028658047,1.69322939,111230.0,111220.0,0.00208]
[1757028658251,1.69222754,111230.0,111220.0,8e-05]
[1757028658449,0.17983994,111210.0,111200.0,0.0004]
[1757028658655,0.2561206,111210.0,111200.0,0.0004]
[1757028658878,0.2561206,111210.0,111200.0,0.31837312]
[1757028659085,0.2561206,111210.0,111200.0,0.0025]
[1757028659284,0.2561206,111210.0,111200.0,0.31690312]
[1757028659492,0.2561425,111210.0,111200.0,0.31690312]
[1757028660187,0.2561425,111210.0,111200.0,0.00397]
[1757028660562,0.24972164,111210.0,111200.0,0.31837312]
[1757028660974,0.24972164,111210.0,111200.0,0.00397]
[1757028661196,0.24972164,111210.0,111200.0,0.0025]
[1757028661197,0.25814207,111210.0,111200.0,0.0025]
[1757028661340,0.25072164,111210.0,111200.0,0.0035]
[1757028661767,0.57038476,111210.0,111200.0,0.0035]
[1757028662215,0.25598164,111210.0,111200.0,0.0035]
[1757028662810,0.78967374,111210.0,111200.0,0.0014]
[1757028663002,1.14584583,111210.0,111200.0,0.0014]
[1757028663204,1.16877503,111210.0,111200.0,0.0014]
[1757028663650,0.85238153,111210.0,111200.0,0.0014]
[1757028663924,0.17987229,111190.0,111180.0,0.21989092]
[1757028664124,0.25580214,111190.0,111180.0,0.15361092]
[1757028664327,0.25580214,111190.0,111180.0,0.15571092]
[1757028664722,0.26106214,111190.0,111180.0,0.00125092]
[1757028664974,0.26106214,111190.0,111180.0,0.00335092]
[1757028665165,0.25594243,111190.0,111180.0,0.00335092]
[1757028665588,0.25694243,111190.0,111180.0,0.00435092]
[1757028665782,0.25894243,111190.0,111180.0,0.00435092]
[1757028665950,0.25594243,111190.0,111180.0,0.00335092]
[1757028666354,0.23582587,111190.0,111180.0,0.00435092]
[1757028666981,0.2960365,111190.0,111180.0,0.00225092]
[1757028667182,0.66835902,111190.0,111180.0,0.00225092]
[1757028667628,0.71964596,111190.0,111180.0,0.00225092]
[1757028667835,0.66246533,111190.0,111180.0,0.00431092]
[1757028668039,0.61398155,111190.0,111180.0,0.00431092]
[1757028668238,0.63820002,111190.0,111180.0,0.00431092]
[1757028668447,0.64019002,111190.0,111180.0,0.00431092]
[1757028668863,0.64019002,111190.0,111180.0,0.00225092]
[1757028669261,0.68143515,111190.0,111180.0,0.00225092]
[1757028669483,0.65721668,111190.0,111180.0,0.00225092]
[1757028669980,0.71946774,111190.0,111180.0,0.00225092]
[1757028670224,0.65521668,111190.0,111180.0,0.00225092]
[1757028670627,1.08792229,111190.0,111180.0,0.00225092]
[1757028670828,1.10969637,111190.0,111180.0,0.00125092]
[1757028671192,1.11069637,111190.0,111180.0,0.00125092]
[1757028671387,1.22932206,111190.0,111180.0,0.00125092]
[1757028671639,1.22832206,111190.0,111180.0,0.00125092]
[1757028672154,1.22932206,111190.0,111180.0,0.00125092]
[1757028672525,1.22455118,111190.0,111180.0,0.00125092]
[1757028672851,1.19222866,111190.0,111180.0,0.00125092]
[1757028673062,1.21793836,111190.0,111180.0,0.00125092]
[1757028673690,1.28421836,111190.0,111180.0,0.00125092]
[1757028674818,1.30768814,111190.0,111180.0,0.00125092]
[1757028676553,1.28421836,111190.0,111180.0,0.00125092]
[1757028676766,1.23573458,111190.0,111180.0,0.00125092]
[1757028677441,1.43994642,111190.0,111180.0,0.00125092]
[1757028677877,1.43994642,111190.0,111180.0,1e-08]
[1757028677878,1.7565745,111190.0,111180.0,1e-08]
[1757028678097,1.44149458,111190.0,111180.0,1e-08]
[1757028678315,1.50618293,111190.0,111180.0,1e-08]
[1757028678536,0.85147975,111190.0,111180.0,1e-08]
[1757028678756,1.35453758,111190.0,111180.0,0.00206001]
[1757028679132,1.35453758,111190.0,111180.0,1e-08]
[1757028679356,0.51990465,111170.0,111160.0,0.00147]
[1757028679551,0.17993702,111150.0,111140.0,0.34645772]
[1757028679776,0.20414877,111160.0,111150.0,0.18140702]
[1757028680005,0.04361029,111160.0,111150.0,0.92937285]
[1757028680234,0.04361029,111160.0,111150.0,0.29921301]
[1757028680448,0.01938235,111160.0,111150.0,0.92937285]
[1757028680659,0.01938235,111160.0,111150.0,0.61429293]
[1757028680865,0.01952257,111160.0,111150.0,0.61429293]
[1757028681661,0.01952257,111160.0,111150.0,0.92937285]
[1757028681861,0.00014022,111160.0,111150.0,0.92937285]
[1757028682067,0.00114022,111160.0,111150.0,0.92937285]
[1757028682445,0.00214022,111160.0,111150.0,0.92937285]
[1757028682646,0.00014022,111160.0,111150.0,0.92937285]
[1757028682831,0.00114022,111160.0,111150.0,0.92937285]
[1757028683194,0.00314022,111160.0,111150.0,0.61429293]
[1757028683399,0.00314022,111160.0,111150.0,0.76985293]
[1757028684010,0.18306105,111160.0,111150.0,0.76985293]
[1757028684231,0.18306105,111160.0,111150.0,0.74447293]
[1757028684377,0.18306105,111160.0,111150.0,0.74594293]
[1757028685698,0.00314022,111160.0,111150.0,0.74594293]
[1757028685899,0.00314022,111160.0,111150.0,1.06102285]
[1757028686284,0.00314022,111160.0,111150.0,0.74594293]
[1757028687597,0.00314022,111160.0,111150.0,0.43086301]
[1757028687811,0.18306105,111160.0,111150.0,0.40905591]
[1757028688017,0.18306105,111160.0,111150.0,0.56433591]
[1757028688446,0.18306105,111160.0,111150.0,0.31713992]
[1757028688663,0.18808105,111160.0,111150.0,0.15726]
[1757028689062,0.18808105,111160.0,111150.0,0.47237992]
[1757028689265,0.18608105,111160.0,111150.0,0.1573]
[1757028689473,0.18106105,111160.0,111150.0,0.1573]
[1757028689675,0.18409105,111160.0,111150.0,0.1573]
[1757028689910,0.18609105,111160.0,111150.0,0.1573]
[1757028690295,0.18708105,111160.0,111150.0,0.1573]
[1757028690564,0.18808105,111160.0,111150.0,0.47237992]
[1757028690767,0.18808105,111160.0,111150.0,0.15524]
[1757028690950,0.18608105,111160.0,111150.0,0.15524]
[1757028691149,0.18508105,111160.0,111150.0,0.15524]
[1757028691380,0.17993702,111150.0,111140.0,0.31547992]
[1757028691613,0.17993702,111150.0,111140.0,0.47273992]
[1757028692261,0.17993702,111150.0,111140.0,0.15766]
[1757028692476,0.002,111150.0,111140.0,0.74607912]
[1757028692901,0.002,111150.0,111140.0,0.76990912]
[1757028693718,0.003,111150.0,111140.0,0.76990912]
[1757028694387,0.003,111150.0,111140.0,0.4548292]
[1757028694598,0.003,111150.0,111140.0,0.76990912]
[1757028695023,0.003,111150.0,111140.0,1.08498904]
[1757028708249,0.003,111150.0,111140.0,1.06035904]
[1757028713059,0.003,111150.0,111140.0,1.42129786]
[1757028713267,0.003,111150.0,111140.0,1.44507786]
[1757028713435,0.003,111150.0,111140.0,1.44868325]
[1757028713835,0.002,111150.0,111140.0,1.44868325]
[1757028714100,0.002,111150.0,111140.0,1.3346024]
[1757028714302,0.003,111150.0,111140.0,1.3346024]
[1757028714463,0.003,111150.0,111140.0,1.4887624]
[1757028715072,0.001,111150.0,111140.0,1.4887624]
[1757028715359,0.003,111150.0,111140.0,1.4927624]
[1757028715557,0.002,111150.0,111140.0,1.4927624]
[1757028715938,0.002,111150.0,111140.0,1.8927624]
[1757028716372,0.003,111150.0,111140.0,1.8967624]
[1757028717366,0.0006978,111150.0,111140.0,2.31184232]
[1757028717522,0.0006978,111150.0,111140.0,1.9967624]
[1757028720738,0.00014022,111160.0,111150.0,0.51993702]
[1757028720952,0.00014022,111160.0,111150.0,1.78626277]
[1757028721154,0.00014022,111160.0,111150.0,1.78843277]
[1757028721367,0.00014022,111160.0,111150.0,2.03451277]
[1757028721546,0.00014022,111160.0,111150.0,2.21542816]
[1757028721965,0.00214022,111160.0,111150.0,2.22442816]
[1757028722203,0.00114022,111160.0,111150.0,2.21842816]
[1757028722407,0.00114022,111160.0,111150.0,2.21542816]
[1757028722408,0.00014022,111160.0,111150.0,2.21542816]
[1757028722611,0.00214022,111160.0,111150.0,2.22242816]
[1757028722820,0.00314022,111160.0,111150.0,2.22642816]
[1757028724884,0.00314022,111160.0,111150.0,2.22626816]
[1757028727594,0.00314022,111160.0,111150.0,1.0520584]
[1757028727802,0.00314022,111160.0,111150.0,1.65489203]
[1757028728010,0.00314022,111160.0,111150.0,1.82947085]
[1757028728606,0.00314022,111160.0,111150.0,1.80853203]
[1757028728764,0.00314022,111160.0,111150.0,1.82947085]
[1757028729103,0.00823022,111160.0,111150.0,0.91489203]
[1757028729401,0.00823022,111160.0,111150.0,1.06636203]
[1757028730943,0.00314022,111160.0,111150.0,1.38325654]
[1757028731369,0.00314022,111160.0,111150.0,1.06832203]
[1757028732289,0.00314022,111160.0,111150.0,1.40566536]
[1757028732518,0.00314022,111160.0,111150.0,1.74566536]
[1757028733130,0.00314022,111160.0,111150.0,2.14566536]
[1757028734000,0.00314022,111160.0,111150.0,1.67562085]
[1757028734215,0.00823022,111160.0,111150.0,1.67562085]
[1757028734413,0.00823022,111160.0,111150.0,1.27562085]
[1757028734615,0.00823022,111160.0,111150.0,1.43126085]
[1757028737632,0.00823022,111160.0,111150.0,1.27562085]
[1757028737839,0.00823022,111160.0,111150.0,1.25272203]
[1757028738037,0.00823022,111160.0,111150.0,1.40816203]
[1757028740000,0.00823022,111160.0,111150.0,1.41012203]
[1757028740390,0.00823022,111160.0,111150.0,1.40816203]
[1757028740588,0.00823022,111160.0,111150.0,1.25468203]
[1757028740792,0.00314022,111160.0,111150.0,1.41004203]
[1757028740993,0.00314022,111160.0,111150.0,1.41151203]
[1757028742843,0.00314022,111160.0,111150.0,1.43245085]
[1757028743182,0.00314022,111160.0,111150.0,1.74738536]
[1757028743597,0.00314022,111160.0,111150.0,1.85948756]
[1757028747670,0.00314022,111160.0,111150.0,2.22442207]
[1757028748016,0.00314022,111160.0,111150.0,2.17442207]
[1757028748239,0.00314022,111160.0,111150.0,1.90948756]
[1757028748688,0.00314022,111160.0,111150.0,1.85948756]
[1757028749336,0.00314022,111160.0,111150.0,1.90948756]
[1757028752390,0.00314022,111160.0,111150.0,2.17498756]
[1757028752590,0.00314022,111160.0,111150.0,2.48992207]
[1757028754010,0.00314022,111160.0,111150.0,2.51324207]
[1757028755122,1e-08,111160.0,111150.0,2.51324207]
[1757028758366,1e-08,111160.0,111150.0,2.56324207]
[1757028758566,1e-08,111160.0,111150.0,2.40788207]
[1757028758795,1e-08,111160.0,111150.0,2.56252207]
[1757028759503,1e-08,111160.0,111150.0,2.40788207]
[1757028759695,1e-08,111160.0,111150.0,2.24754756]
[1757028760292,1e-08,111160.0,111150.0,2.09294756]
[1757028760581,1e-08,111160.0,111150.0,2.17271756]
[1757028761081,1e-08,111160.0,111150.0,2.12271756]
[1757028761428,1e-08,111160.0,111150.0,2.17271756]
[1757028762214,1e-08,111160.0,111150.0,1.54284854]
[1757028762429,1e-08,111160.0,111150.0,2.17271756]
[1757028764224,1e-08,111160.0,111150.0,1.90721756]
[1757028765443,1e-08,111160.0,111150.0,1.85705756]
[1757028765560,1e-08,111160.0,111150.0,1.85701756]
[1757028767765,1e-08,111160.0,111150.0,1.85689756]
[1757028768879,1e-08,111160.0,111150.0,1.90689756]
[1757028769030,1e-08,111160.0,111150.0,1.85689756]
[1757028769373,1e-08,111160.0,111150.0,1.90689756]
[1757028769517,1e-08,111160.0,111150.0,1.85689756]
[1757028770532,0.00307,111170.0,111160.0,0.54085965]
[1757028770731,0.00307,111170.0,111160.0,1.48355591]
[1757028770960,0.00509,111170.0,111160.0,1.48355591]
[1757028771167,0.00509,111170.0,111160.0,1.51059262]
[1757028771599,0.00509,111170.0,111160.0,1.51459262]
[1757028771831,0.00609,111170.0,111160.0,1.51459262]
[1757028772104,0.00709,111170.0,111160.0,1.51859262]
[1757028772920,0.00709,111170.0,111160.0,1.52073262]
[1757028775182,0.00709,111170.0,111160.0,0.8908636]
[1757028775410,0.00709,111170.0,111160.0,1.52073262]
[1757028776506,0.00507,111170.0,111160.0,1.52073262]
[1757028776808,0.002,111170.0,111160.0,1.52073262]
[1757028777207,0.00507,111170.0,111160.0,1.52073262]
[1757028777509,0.00709,111170.0,111160.0,0.8908636]
[1757028777706,0.00709,111170.0,111160.0,1.52073262]
[1757028780414,0.00507,111170.0,111160.0,1.52073262]
[1757028780613,0.00709,111170.0,111160.0,1.46813399]
[1757028781901,0.00709,111170.0,111160.0,1.46599399]
[1757028783611,0.00709,111170.0,111160.0,0.95089517]
[1757028783815,0.00709,111170.0,111160.0,1.10465517]
[1757028784506,0.00709,111170.0,111160.0,0.78964066]
[1757028784723,0.00709,111170.0,111160.0,0.32102615]
[1757028784945,0.00709,111170.0,111160.0,0.78964066]
[1757028786669,0.18699465,111170.0,111160.0,0.60892395]
[1757028786881,0.18699465,111170.0,111160.0,0.63520175]
[1757028787081,0.18699465,111170.0,111160.0,0.32026724]
[1757028787939,0.18499465,111170.0,111160.0,0.31226724]
[1757028788279,0.18599465,111170.0,111160.0,0.31626724]
[1757028789247,0.18599465,111170.0,111160.0,0.07075125]
[1757028789596,0.18599465,111170.0,111160.0,0.22423125]
[1757028792396,0.50116466,111170.0,111160.0,0.22423125]
[1757028792606,0.84116466,111170.0,111160.0,0.15795125]
[1757028792992,0.86821085,111170.0,111160.0,0.15795125]
[1757028795232,0.96012684,111170.0,111160.0,0.15795125]
[1757028796774,0.96012684,111170.0,111160.0,0.00447125]
[1757028797937,1.11352684,111170.0,111160.0,0.00447125]
[1757028798174,1.20544283,111170.0,111160.0,0.00447125]
[1757028798392,1.27522202,111170.0,111160.0,0.00447125]
[1757028798636,1.27518202,111170.0,111160.0,0.00447125]
[1757028799089,1.31519039,111170.0,111160.0,0.00447125]
[1757028799300,1.33866017,111170.0,111160.0,0.00247125]
[1757028799500,1.34066017,111170.0,111160.0,0.00247125]
[1757028799736,1.33966017,111170.0,111160.0,0.00047125]
[1757028799937,1.34266017,111170.0,111160.0,0.00147125]
[1757028800365,1.31919039,111170.0,111160.0,0.00147125]
[1757028800573,1.31915039,111170.0,111160.0,0.00147125]
[1757028801404,1.2493712,111170.0,111160.0,0.00147125]
[1757028801767,1.2493312,111170.0,111160.0,0.00147125]
[1757028802665,1.0960512,111170.0,111160.0,0.00147125]
[1757028802808,1.2686869,111170.0,111160.0,0.00147125]
[1757028803384,1.2492912,111170.0,111160.0,0.00147125]
[1757028803587,1.0960512,111170.0,111160.0,0.00147125]
[1757028803794,1.2492912,111170.0,111160.0,0.00147125]
[1757028805433,1.26867077,111170.0,111160.0,0.00147125]
[1757028806340,0.80026076,111170.0,111160.0,0.00147125]
[1757028806700,1.26859077,111170.0,111160.0,0.00147125]
[1757028807222,0.95342076,111170.0,111160.0,0.00147125]
[1757028807428,1.26859077,111170.0,111160.0,0.00147125]
[1757028808042,0.95338076,111170.0,111160.0,0.00147125]
[1757028808265,1.26855077,111170.0,111160.0,0.00147125]
[1757028811692,1.26851077,111170.0,111160.0,0.00147125]
[1757028813908,0.95334076,111170.0,111160.0,0.00147125]
[1757028814121,1.26851077,111170.0,111160.0,0.00147125]
[1757028815822,1.11543077,111170.0,111160.0,0.00147125]
[1757028815972,1.26847077,111170.0,111160.0,0.00147125]
[1757028816379,1.29277149,111170.0,111160.0,0.00147125]
[1757028816601,0.73264549,111170.0,111160.0,0.00147125]
[1757028816799,0.70325477,111170.0,111160.0,0.00356125]
[1757028817043,0.93182879,111170.0,111160.0,0.00356125]
[1757028817656,0.93182879,111170.0,111160.0,0.00147125]
[1757028819020,0.89182042,111170.0,111160.0,0.00147125]
[1757028820344,0.91612114,111170.0,111160.0,0.00147125]
[1757028821137,1.00803713,111170.0,111160.0,0.00147125]
[1757028821696,0.91612114,111170.0,111160.0,0.00147125]
[1757028823034,1.06904114,111170.0,111160.0,0.00147125]
[1757028824714,0.91612114,111170.0,111160.0,0.00147125]
[1757028824864,1.06908114,111170.0,111160.0,0.00147125]
[1757028826399,1.11824691,111170.0,111160.0,0.00147125]
[1757028826603,1.06908114,111170.0,111160.0,0.00147125]
[1757028827068,1.10138505,111170.0,111160.0,0.00147125]
[1757028827464,1.11825017,111170.0,111160.0,0.00147125]
[1757028827907,1.10138505,111170.0,111160.0,0.00147125]
[1757028828480,1.06908114,111170.0,111160.0,0.00147125]
[1757028830483,1.06880114,111170.0,111160.0,0.00147125]
[1757028832585,1.10110505,111170.0,111160.0,0.00147125]
[1757028832781,1.06876114,111170.0,111160.0,0.00147125]